bitfinex/quotes_ETHUSD_20240614
["timestamp","ask_amount","ask_price","bid_price","bid_amount"]
[1718345623415,0.0711321,3514.7,3514.2,0.14264022]
[1718345627914,2.4199,3514.7,3514.2,0.14264022]
[1718345628449,0.699,3515.0,3514.2,0.19954592]
[1718345628751,3.0228,3515.0,3514.2,1.01167122]
[1718345629249,2.3238,3515.0,3514.2,1.01167122]
[1718345629561,0.699,3514.9,3514.2,1.01167122]
[1718345630299,0.77013211,3514.9,3514.2,1.01167122]
[1718345630588,0.77013211,3514.9,3514.3,0.58419783]
[1718345630952,0.77013211,3514.9,3514.4,0.14254553]
[1718345632156,0.07113211,3514.9,3514.4,0.14254553]
[1718345632389,0.77013211,3514.9,3514.4,0.14254553]
[1718345635052,0.07113211,3514.9,3514.4,0.14254553]
[1718345635262,0.07113211,3514.9,3514.4,0.2964324]
[1718345635263,0.77013211,3514.9,3514.4,0.2964324]
[1718345635568,0.77013211,3514.9,3514.4,0.14254553]
[1718345641030,0.699,3514.7,3514.4,0.14254553]
[1718345643019,0.699,3514.7,3514.5,0.14251491]
[1718345643337,0.699,3514.7,3513.9,2.3924]
[1718345643532,0.699,3514.7,3514.6,0.14244782]
[1718345643739,0.699,3514.7,3513.9,3.82584514]
[1718345643915,0.07113337,3514.6,3514.0,0.92328451]
[1718345644113,0.07113329,3514.9,3514.1,0.05690663]
[1718345644308,0.77013329,3514.9,3514.1,0.05690663]
[1718345644507,0.07113329,3514.9,3514.2,2.3406]
[1718345644707,0.07113329,3514.9,3514.3,0.33207911]
[1718345644924,2.2993,3515.6,3514.4,2.3406]
[1718345645118,0.699,3515.1,3514.4,2.3406]
[1718345645455,2.37043045,3515.6,3514.4,2.3406]
[1718345645456,0.07113046,3515.5,3514.4,2.3406]
[1718345645659,0.699,3515.1,3514.4,2.3406]
[1718345645828,0.699,3515.1,3514.5,0.26726791]
[1718345651224,0.699,3515.1,3514.6,0.14243566]
[1718345651925,0.699,3515.1,3514.4,2.3406]
[1718345652120,0.699,3515.1,3514.7,0.14236857]
[1718345652387,0.699,3515.1,3514.4,2.3406]
[1718345652557,0.699,3515.1,3514.8,0.14230149]
[1718345652745,0.699,3515.1,3514.4,2.3406]
[1718345653359,0.699,3515.1,3514.5,0.14250274]
[1718345654868,0.07113046,3515.5,3514.5,0.14250274]
[1718345655162,0.699,3515.0,3514.5,0.14250274]
[1718345655453,0.699,3515.0,3514.5,0.28151818]
[1718345655662,0.699,3515.0,3514.6,0.14243566]
[1718345657174,0.07113046,3515.5,3514.6,0.14243566]
[1718345657342,0.77013046,3515.5,3514.7,2.3566]
[1718345657548,0.699,3515.5,3514.7,2.3566]
[1718345657866,0.699,3515.5,3514.8,0.46210506]
[1718345658855,0.699,3515.5,3514.9,2.3773]
[1718345659033,0.699,3515.5,3515.0,0.14217951]
[1718345661867,0.07111817,3515.7,3515.0,0.14217951]
[1718345662172,0.699,3515.4,3515.0,0.14217951]
[1718345662338,0.699,3515.4,3515.1,0.28392831]
[1718345662671,0.699,3515.4,3515.2,0.14204538]
[1718345662973,2.42041821,3515.3,3515.2,0.14204538]
[1718345663669,2.42041821,3515.3,3514.5,2.4304]
[1718345663967,0.77012605,3515.2,3514.6,0.14244782]
[1718345667043,0.77012605,3515.2,3514.6,0.43294051]
[1718345671053,0.699,3515.0,3514.6,0.43294051]
[1718345671250,0.77012873,3515.0,3514.6,0.43294051]
[1718345672341,0.699,3515.0,3514.6,0.43294051]
[1718345673048,0.699,3515.0,3514.6,0.14244782]
[1718345673049,0.07112872,3514.9,3514.6,0.14244782]
[1718345673270,0.07112872,3514.9,3514.3,2.70397911]
[1718345673481,0.07112872,3514.9,3514.4,0.14268837]
[1718345673776,0.07112877,3515.2,3514.4,0.19959138]
[1718345674078,0.699,3515.0,3514.4,0.19959138]
[1718345674259,0.699,3515.0,3514.4,0.48994843]
[1718345676845,0.77012877,3515.2,3514.4,0.48994843]
[1718345678887,0.0711287,3515.2,3514.4,0.48994843]
[1718345679061,0.0711287,3515.2,3514.5,2.3382]
[1718345679255,0.0711287,3515.2,3514.6,0.58758243]
[1718345680079,0.77012786,3515.4,3514.6,0.58758243]
[1718345683778,0.07112547,3515.4,3514.7,2.3588]
[1718345683982,0.699,3515.4,3514.7,2.3588]
[1718345684296,0.699,3515.4,3514.8,0.43705827]
[1718345685465,0.07112291,3516.0,3514.9,2.4625]
[1718345685662,0.699,3515.5,3515.0,0.19917857]
[1718345686291,0.07112291,3516.0,3515.0,0.19917857]
[1718345686466,0.699,3515.6,3515.0,0.19917857]
[1718345689193,0.699,3515.6,3515.1,2.4213]
[1718345689569,0.07112291,3516.0,3515.2,0.19893473]
[1718345689771,0.699,3515.8,3515.2,0.19893473]
[1718345689996,0.699,3515.8,3515.3,2.2786]
[1718345690206,0.699,3515.8,3515.4,0.24775347]
[1718345690510,0.699,3515.8,3515.4,0.38959179]
[1718345691081,0.0711116,3516.2,3515.4,0.38959179]
[1718345691298,0.699,3516.0,3515.4,0.38959179]
[1718345691512,0.0711116,3516.2,3515.4,0.38959179]
[1718345691813,0.699,3516.0,3515.4,0.38959179]
[1718345692018,0.699,3516.0,3515.5,0.26681918]
[1718345692325,0.699,3516.0,3515.6,0.14162521]
[1718345692871,0.699,3516.0,3515.7,0.14155817]
[1718345693173,0.699,3516.0,3515.4,0.24775347]
[1718345693391,0.699,3516.0,3515.8,0.14149113]
[1718345693570,0.699,3516.0,3515.3,2.2786]
[1718345693913,0.699,3516.0,3515.4,0.29776]
[1718345694072,0.699,3516.0,3515.4,0.43951932]
[1718345694711,0.699,3516.0,3515.4,0.49640688]
[1718345695382,0.07110723,3516.2,3515.4,0.49640688]
[1718345695583,3.0,3516.9,3515.4,0.49640688]
[1718345695922,0.699,3516.1,3515.5,2.51998511]
[1718345696070,0.699,3516.1,3515.6,0.14160091]
[1718345696405,0.699,3516.1,3515.7,2.3108]
[1718345696607,0.07110627,3516.7,3515.7,2.3108]
[1718345696608,0.699,3516.4,3515.7,2.3108]
[1718345696808,0.699,3516.4,3515.8,0.59995143]
[1718345697874,0.07110627,3516.7,3515.8,0.59995143]
[1718345697875,0.699,3516.3,3515.8,0.59995143]
[1718345698510,0.07109792,3516.7,3515.9,2.35617834]
[1718345698672,0.699,3516.5,3516.0,0.14133275]
[1718345698873,0.699,3516.5,3516.0,0.43693232]
[1718345700476,0.07109792,3516.7,3516.0,0.43693232]
[1718345700676,0.699,3516.5,3516.0,0.43693232]
[1718345701117,2.3275,3517.0,3516.0,0.49381067]
[1718345701328,2.3275,3517.0,3516.1,2.3202]
[1718345701510,2.3275,3517.0,3516.2,0.4222502]
[1718345701511,0.699,3516.5,3516.2,0.4222502]
[1718345707722,2.3275,3517.0,3516.2,0.4222502]
[1718345708097,0.699,3516.7,3516.2,0.4222502]
[1718345711933,0.0710929,3517.1,3516.4,2.4758]
[1718345712138,0.699,3516.8,3516.5,0.29549245]
[1718345712304,0.699,3516.8,3516.5,0.4360161]
[1718345713444,0.07108879,3517.4,3516.5,0.49288713]
[1718345713640,0.699,3516.8,3516.5,0.49288713]
[1718345713843,0.699,3516.8,3516.6,0.29686871]
[1718345714223,0.699,3516.8,3516.7,0.14038964]
[1718345714566,0.699,3516.9,3516.7,0.14038964]
[1718345715566,0.07108865,3516.8,3516.7,0.14038964]
[1718345715776,0.07108865,3516.8,3516.0,2.492]
[1718345715935,0.699,3516.3,3516.1,0.38999173]
[1718345716356,0.699,3516.5,3516.1,0.38999173]
[1718345716721,0.699,3516.5,3516.1,0.14079173]
[1718345716722,0.07109937,3516.4,3516.1,0.14079173]
[1718345717084,0.699,3516.2,3515.7,2.322]
[1718345718085,0.074202,3516.2,3515.7,2.322]
[1718345718227,0.074202,3516.2,3515.2,5.2522]
[1718345718426,0.04252264,3516.4,3515.3,1.43344514]
[1718345718662,0.699,3516.3,3515.4,0.60926451]
[1718345718857,0.04252264,3516.2,3515.4,0.60926451]
[1718345719063,0.699,3516.1,3515.4,0.60926451]
[1718345719290,0.04252264,3516.0,3515.3,0.699]
[1718345719587,0.04252264,3516.0,3515.2,2.2522]
[1718345719727,0.04252264,3516.0,3515.2,6.68564514]
[1718345719928,0.04252264,3516.0,3515.2,5.2522]
[1718345720132,0.04252264,3516.0,3515.3,0.59512]
[1718345721307,0.04252264,3516.0,3515.2,2.2522]
[1718345721580,0.699,3515.9,3515.2,2.2522]
[1718345722198,2.3441,3516.5,3515.2,2.2522]
[1718345722345,0.699,3516.0,3515.2,2.2522]
[1718345723476,0.04252264,3515.9,3515.2,2.2522]
[1718345723770,0.04252264,3515.9,3515.3,0.59512]
[1718345724752,3.1461,3515.8,3515.3,0.59512]
[1718345724946,0.04252264,3515.7,3514.9,2.3985]
[1718345725547,0.699,3515.6,3514.9,2.3985]
[1718345725752,0.04252264,3515.5,3514.9,2.3985]
[1718345725949,0.04252264,3515.5,3515.0,0.30975]
[1718345726169,0.04252264,3515.5,3515.1,0.14167486]
[1718345728143,0.699,3515.6,3515.5,0.65337736]
[1718345728369,0.699,3515.6,3515.5,0.79478398]
[1718345740175,2.3477,3516.0,3515.5,0.79478398]
[1718345740373,0.699,3515.6,3515.5,0.79478398]
[1718345746191,2.88247,3516.0,3515.5,0.79478398]
[1718345746413,0.699,3515.6,3515.5,0.65337736]
[1718345746689,0.699,3515.6,3515.5,0.79501794]
[1718345749398,2.88247,3516.0,3515.5,0.79501794]
[1718345749603,0.699,3515.7,3515.5,0.65337736]
[1718345750002,0.699,3515.7,3515.6,0.14157961]
[1718345759068,2.88247,3516.0,3515.6,0.14157961]
[1718345759265,2.88247,3516.0,3515.5,0.65337736]
[1718345759266,0.699,3515.7,3515.5,0.65337736]
[1718345759474,2.4552,3516.4,3515.7,0.14146396]
[1718345759874,2.4552,3516.4,3515.5,2.96427736]
[1718345760182,2.4552,3516.4,3515.8,0.14139691]
[1718345760183,0.699,3516.0,3515.8,0.14139691]
[1718345760370,6.90386552,3517.1,3515.9,0.14132988]
[1718345760566,2.497,3516.9,3515.9,0.14132988]
[1718345760807,2.497,3516.9,3515.5,2.96427736]
[1718345760808,0.699,3516.3,3515.5,2.96427736]
[1718345761011,0.699,3516.3,3515.6,2.2598]
[1718345761308,2.497,3516.9,3515.7,0.14146396]
[1718345761504,0.699,3516.3,3515.7,0.14146396]
[1718345761709,2.497,3516.9,3515.9,2.3386]
[1718345761933,0.699,3516.5,3515.9,2.3386]
[1718345762109,0.699,3516.5,3516.0,0.14126284]
[1718345763210,0.699,3516.3,3516.0,0.14126284]
[1718345763618,0.699,3516.1,3516.0,0.14126284]
[1718345764112,0.699,3516.1,3515.5,2.94737736]
[1718345764278,0.699,3516.1,3516.0,0.14126284]
[1718345764479,0.699,3516.1,3515.6,0.29473774]
[1718345764675,2.4589,3516.4,3516.0,0.14126284]
[1718345764907,0.699,3516.1,3515.6,0.29473774]
[1718345765294,0.699,3516.1,3515.7,0.14146396]
[1718345765496,0.699,3516.1,3515.7,0.47982187]
[1718345765669,2.4413,3516.8,3515.8,2.3558]
[1718345766087,6.32956552,3517.1,3515.8,2.3558]
[1718345766291,2.4257,3517.1,3515.8,2.3558]
[1718345766486,2.4257,3517.1,3515.9,0.41074567]
[1718345766688,0.699,3516.5,3515.9,0.41074567]
[1718345769121,2.4257,3517.1,3516.0,2.3167]
[1718345769471,0.699,3516.5,3516.1,0.13736822]
[1718345769675,0.699,3516.8,3516.2,2.4524]
[1718345769876,0.699,3516.6,3516.2,2.4524]
[1718345770184,0.699,3516.6,3516.3,0.13723417]
[1718345772379,0.699,3516.6,3516.3,0.39619759]
[1718345772647,5.55716148,3517.3,3516.3,0.39619759]
[1718345772794,2.3189,3517.3,3516.3,0.39619759]
[1718345773112,2.3189,3517.3,3516.2,2.4524]
[1718345773319,0.699,3516.7,3516.2,2.4524]
[1718345773488,0.699,3516.7,3516.3,0.13720389]
[1718345774293,2.3189,3517.3,3516.3,0.13720389]
[1718345774627,0.699,3516.7,3516.3,0.39616428]
[1718345777534,2.3189,3517.3,3516.3,0.39616428]
[1718345777717,0.699,3516.7,3516.3,0.39616428]
[1718345785651,2.3189,3517.3,3516.3,0.39616428]
[1718345785806,0.699,3516.8,3516.3,0.39616428]
[1718345786145,0.699,3516.8,3516.3,0.45303623]
[1718345788756,2.4595,3517.5,3516.4,2.3424]
[1718345789144,0.699,3517.1,3516.5,0.13696691]
[1718345789313,0.699,3517.1,3516.6,0.27383273]
[1718345789815,0.699,3517.1,3516.7,0.13683289]
[1718345790963,2.4595,3517.5,3516.7,0.13683289]
[1718345791118,0.699,3517.1,3516.7,0.13683289]
[1718345791456,0.699,3517.1,3516.8,0.13671745]
[1718345791655,0.699,3517.1,3516.6,0.27383273]
[1718345791953,0.699,3517.1,3516.9,0.13665045]
[1718345792174,0.699,3517.1,3516.6,0.27383273]
[1718345792318,0.699,3517.1,3517.0,0.13658346]
[1718345792950,0.699,3517.1,3516.6,0.27383273]
[1718345793148,0.699,3517.1,3517.0,0.13658346]
[1718345793655,0.699,3517.1,3516.6,0.27383273]
[1718345793857,0.699,3517.1,3516.7,0.13678445]
[1718345794021,0.699,3517.1,3516.7,0.41208617]
[1718345794724,2.4595,3517.5,3516.7,0.41208617]
[1718345794937,0.699,3517.2,3516.7,0.41208617]
[1718345795195,0.699,3517.2,3516.7,0.27530172]
[1718345795442,0.699,3517.2,3516.8,2.62581745]
[1718345797321,2.2799,3517.9,3516.8,2.91592937]
[1718345797530,0.699,3517.3,3516.8,2.62581745]
[1718345798069,6.71334514,3517.9,3516.8,2.62581745]
[1718345798227,0.699,3517.3,3516.8,2.62581745]
[1718345799591,6.71334514,3517.9,3516.8,2.62581745]
[1718345799592,5.2799,3517.9,3516.8,2.62581745]
[1718345800082,5.2799,3517.9,3516.9,0.05686326]
[1718345800083,2.2799,3517.9,3516.9,0.05686326]
[1718345800283,0.699,3517.5,3517.0,0.26826807]
[1718345800454,0.699,3517.5,3517.0,0.40478793]
[1718345802783,2.2799,3517.9,3517.0,0.40478793]
[1718345802999,0.699,3517.7,3517.1,2.3647]
[1718345803149,2.2799,3517.9,3517.1,2.3647]
[1718345803352,0.699,3517.7,3517.2,0.13621938]
[1718345807262,2.2799,3517.9,3517.2,0.13621938]
[1718345807475,0.699,3517.6,3517.2,0.13621938]
[1718345807700,0.699,3517.6,3517.3,0.25009194]
[1718345808188,0.699,3517.6,3517.4,0.13608542]
[1718345810003,2.2799,3517.9,3517.4,0.13608542]
[1718345810285,0.699,3517.9,3517.4,0.13608542]
[1718345810691,0.699,3517.9,3517.3,0.25009194]
[1718345812501,3.0,3518.4,3517.4,2.368]
[1718345812698,0.699,3517.8,3517.4,2.368]
[1718345813212,1.43344514,3518.4,3517.5,0.13601844]
[1718345813414,5.4398,3518.5,3517.5,0.13601844]
[1718345813714,5.4398,3518.5,3517.5,0.19287176]
[1718345813715,0.699,3518.1,3517.5,0.19287176]
[1718345813915,0.699,3518.1,3517.6,0.28109637]
[1718345814266,0.699,3518.1,3517.7,0.13567569]
[1718345814514,0.699,3518.1,3517.8,2.2861]
[1718345814711,0.699,3518.3,3517.8,2.42170872]
[1718345814867,2.4398,3518.5,3517.8,2.42170872]
[1718345815075,0.699,3518.2,3517.9,0.27028051]
[1718345815488,0.699,3518.2,3518.0,0.13541428]
[1718345817785,2.2828,3518.6,3518.0,0.13541428]
[1718345817989,0.699,3518.3,3518.0,0.13541428]
[1718345819627,2.2828,3518.6,3518.0,0.13541428]
[1718345819785,0.699,3518.3,3518.0,0.40459376]
[1718345820210,0.699,3518.5,3518.0,0.40459376]
[1718345820485,3.90386552,3519.2,3518.0,0.40459376]
[1718345820796,3.23826148,3519.4,3518.1,2.4788]
[1718345820797,0.699,3518.7,3518.1,2.4788]
[1718345821206,0.699,3518.7,3518.2,0.13528038]
[1718345821403,5.3794,3519.1,3518.2,0.13528038]
[1718345821604,0.699,3518.7,3518.2,0.13528038]
[1718345821804,0.699,3518.7,3518.3,0.26140804]
[1718345822012,0.699,3518.7,3518.3,0.39662148]
[1718345823597,5.50766148,3519.4,3518.4,2.4946]
[1718345823800,0.27787996,3520.2,3518.6,0.699]
[1718345823992,0.699,3519.4,3518.6,3.13886666]
[1718345824186,0.699,3519.2,3518.7,0.13454328]
[1718345825190,2.353,3519.6,3518.7,0.13454328]
[1718345825391,0.699,3518.8,3518.7,0.13454328]
[1718345825812,0.699,3518.8,3518.3,0.26140804]
[1718345826004,0.699,3518.8,3518.7,0.13454328]
[1718345826205,0.699,3518.8,3518.3,0.26140804]
[1718345826424,0.699,3518.8,3518.7,0.13454328]
[1718345826831,0.699,3518.8,3518.3,0.26140804]
[1718345827043,0.699,3518.8,3518.7,0.13454328]
[1718345827212,0.699,3519.0,3518.3,0.26140804]
[1718345827734,0.699,3519.0,3518.4,0.13474408]
[1718345828294,0.699,3519.0,3518.4,0.41450929]
[1718345828704,0.699,3518.8,3518.4,0.41450929]
[1718345832940,0.699,3519.1,3518.5,2.282]
[1718345833321,0.699,3519.1,3518.6,0.13444991]
[1718345839540,5.69076148,3519.7,3518.6,0.19128796]
[1718345839842,0.699,3519.3,3518.7,2.4746]
[1718345840043,0.699,3519.3,3518.8,0.3872512]
[1718345841065,5.69076148,3519.7,3518.8,0.3872512]
[1718345841268,0.699,3519.3,3518.8,0.25314381]
[1718345841450,0.699,3519.3,3518.9,0.13404047]
[1718345841644,0.699,3519.3,3518.9,0.4202189]
[1718345841966,2.4525,3519.7,3518.9,0.4202189]
[1718345842132,0.699,3519.3,3518.9,0.4202189]
[1718345842332,0.699,3519.3,3518.9,0.28617843]
[1718345842774,0.699,3519.3,3519.0,0.13397355]
[1718345843166,0.699,3519.3,3518.9,0.28617843]
[1718345843362,0.699,3519.3,3519.1,0.13390663]
[1718345843565,0.699,3519.3,3519.0,0.13397355]
[1718345843751,0.699,3519.3,3519.2,0.13383972]
[1718345843953,0.699,3519.3,3519.1,0.13390663]
[1718345844160,0.699,3519.3,3518.9,0.28617843]
[1718345844844,0.699,3519.3,3519.0,0.13397355]
[1718345845044,0.699,3519.3,3518.9,0.28617843]
[1718345845229,0.699,3519.3,3519.0,0.13397355]
[1718345845427,0.699,3519.3,3518.9,0.28617843]
[1718345845831,0.699,3519.3,3519.0,0.13397355]
[1718345846066,0.699,3519.3,3519.0,0.2894752]
[1718345846226,0.699,3519.3,3519.1,0.13390663]
[1718345847642,3.23826148,3520.2,3519.2,2.2972]
[1718345847844,5.3486,3520.6,3519.2,2.2972]
[1718345847845,0.699,3520.0,3519.2,2.2972]
[1718345848048,0.699,3520.0,3519.3,0.13377281]
[1718345849769,0.699,3519.8,3519.3,0.13377281]
[1718345851754,3.0,3520.5,3519.3,0.1905979]
[1718345851975,5.3486,3520.6,3519.4,2.2639]
[1718345852138,0.699,3520.1,3519.4,2.2639]
[1718345852340,0.699,3520.1,3519.5,0.25924675]
[1718345852545,0.699,3520.1,3519.5,0.39245041]
[1718345852857,0.699,3520.0,3519.5,0.39245041]
[1718345854572,2.3486,3520.6,3519.5,0.44927243]
[1718345854774,0.699,3520.0,3519.5,0.44927243]
[1718345854942,0.699,3520.0,3519.6,0.27131724]
[1718345855137,0.699,3520.0,3519.6,0.40441774]
[1718345856678,0.699,3520.0,3519.7,2.4382]
[1718345856882,0.699,3520.0,3519.8,0.13296672]
[1718345857173,0.699,3520.0,3519.7,2.4382]
[1718345857361,0.699,3520.0,3519.9,0.13289983]
[1718345857564,0.699,3520.0,3519.8,0.13296672]
[1718345857751,0.699,3520.0,3519.9,0.13289983]
[1718345858269,0.699,3520.0,3519.5,2.4471]
[1718345858478,0.699,3520.0,3519.6,0.13305214]
[1718345860863,0.699,3519.7,3519.6,0.13305214]
[1718345861077,0.699,3519.7,3519.2,2.4756]
[1718345861386,0.699,3519.7,3519.3,0.13327098]
[1718345863041,0.699,3519.5,3519.3,0.13327098]
[1718345863360,0.699,3519.5,3517.7,0.88821722]
[1718345863361,0.699,3519.5,3518.6,2.2737]
[1718345863547,2.3791,3519.8,3519.4,0.1332101]
[1718345863747,0.699,3519.5,3518.6,2.2737]
[1718345864048,0.699,3519.2,3518.7,0.22737]
[1718345869848,2.3791,3519.8,3518.7,0.22737]
[1718345870067,0.699,3519.3,3518.7,0.22737]
[1718345870313,2.3791,3519.8,3518.7,0.22737]
[1718345870507,0.699,3519.3,3518.8,0.13378691]
[1718345870654,0.699,3519.3,3518.8,0.26348569]
[1718345870848,0.699,3519.3,3518.9,0.13371998]
[1718345873187,0.699,3519.3,3519.0,2.4496]
[1718345873387,0.699,3519.5,3519.0,2.58325306]
[1718345874404,0.699,3519.5,3519.1,0.28467388]
[1718345874610,0.699,3519.5,3519.0,2.58325306]
[1718345874906,0.699,3519.5,3519.2,0.13351924]
[1718345875201,0.699,3519.5,3519.3,0.13345233]
[1718345875368,0.699,3519.5,3519.0,2.4496]
[1718345875570,2.4554,3520.0,3519.4,0.13338542]
[1718345875806,0.699,3519.5,3519.0,2.4496]
[1718345876614,0.699,3519.5,3519.1,0.13358615]
[1718345878111,3.0328,3519.5,3519.1,0.13358615]
[1718345878312,0.699,3519.2,3519.1,0.13358615]
[1718345878470,0.699,3519.2,3518.7,2.4949]
[1718345878671,0.699,3519.2,3519.1,0.13362848]
[1718345878904,0.699,3519.2,3518.7,2.4949]
[1718345879109,0.699,3519.2,3519.1,0.13362848]
[1718345879324,0.699,3519.2,3518.1,1.708]
[1718345879619,0.699,3519.2,3518.3,2.3121]
[1718345879827,0.699,3519.2,3518.4,2.06212274]
[1718345880107,0.699,3519.2,3518.4,2.19621971]
[1718345880894,0.699,3519.2,3518.5,2.3771]
[1718345881096,2.2677,3519.6,3518.5,2.3771]
[1718345881284,0.699,3519.3,3518.6,0.1339631]
[1718345881912,2.2677,3519.6,3518.7,0.05683356]
[1718345882073,0.699,3519.4,3518.8,2.4768]
[1718345882274,0.699,3519.4,3518.9,0.26675967]
[1718345882476,0.699,3519.4,3518.9,0.40052199]
[1718345883089,2.4266,3519.8,3518.9,0.45735376]
[1718345883289,0.699,3519.4,3518.9,0.45735213]
[1718345884492,0.699,3519.4,3518.9,0.40052199]
[1718345884691,0.699,3519.4,3519.0,0.2877322]
[1718345885092,0.699,3519.4,3519.1,0.13357709]
[1718345885419,0.699,3519.5,3519.1,0.13357709]
[1718345888620,0.699,3519.5,3518.8,2.4768]
[1718345888923,0.699,3519.3,3519.2,0.13346786]
[1718345889128,0.699,3519.3,3518.8,2.4768]
[1718345889318,0.699,3519.3,3518.8,2.72448]
[1718345889629,0.699,3519.3,3518.9,0.1336686]
[1718345890338,0.27775486,3520.8,3519.3,2.2924]
[1718345890503,0.27775486,3520.8,3518.9,0.1336686]
[1718345890504,2.351,3521.4,3519.8,2.2924]
[1718345890709,2.351,3521.4,3520.0,0.699]
[1718345890710,0.699,3521.1,3520.0,0.699]
[1718345890906,0.699,3521.1,3520.1,0.05680696]
[1718345891136,0.699,3521.1,3520.1,0.18968185]
[1718345891428,0.699,3520.9,3520.1,1.62312699]
[1718345891587,0.699,3520.9,3520.1,2.10750369]
[1718345892033,0.699,3520.9,3520.1,0.67405855]
[1718345892716,0.699,3520.7,3520.1,0.67405855]
[1718345892913,0.699,3520.5,3520.1,0.18968185]
[1718345893095,0.25861,3521.2,3520.1,0.18968185]
[1718345893733,0.699,3520.6,3520.1,0.18968185]
[1718345895435,0.699,3520.8,3520.1,1.62312699]
[1718345895594,0.699,3520.6,3520.1,1.62312699]
[1718345895790,0.699,3520.6,3520.2,0.1623127]
[1718345896120,0.699,3520.6,3520.3,0.05680652]
[1718345896304,3.23826148,3521.3,3520.3,0.05680652]
[1718345896521,3.23826148,3521.3,3520.4,0.1322875]
[1718345896727,0.699,3520.7,3520.4,0.1322875]
[1718345896940,0.699,3520.7,3520.4,0.31077269]
[1718345899826,0.699,3520.7,3520.4,0.1322875]
[1718345900018,0.699,3520.7,3520.2,0.05680646]
[1718345900221,0.699,3520.7,3520.5,0.13219648]
[1718345900627,0.699,3520.7,3519.9,0.0568085]
[1718345900970,0.699,3520.5,3520.0,1.43344514]
[1718345901259,0.699,3520.5,3520.1,0.4350739]
[1718345905531,3.23826148,3521.3,3520.1,0.4350739]
[1718345905734,0.699,3520.5,3520.1,0.05680854]
[1718345905979,0.699,3520.5,3519.9,0.05680906]
[1718345906161,0.699,3520.5,3519.9,1.4902542]
[1718345906677,0.699,3520.5,3520.0,0.13217122]
[1718345906881,0.699,3520.5,3520.1,0.05680903]
[1718345907369,0.699,3520.5,3520.2,0.13209184]
[1718345910473,0.699,3520.3,3520.2,0.13209184]
[1718345911252,0.699,3520.5,3520.2,0.13209184]
[1718345917644,0.699,3520.3,3520.2,0.13209184]
[1718345923755,0.699,3520.5,3520.2,0.13209184]
[1718345924097,0.2399,3520.9,3520.3,2.40920913]
[1718345924294,0.699,3520.8,3520.3,2.40920913]
[1718345924493,0.699,3520.6,3520.3,2.40920913]
[1718345924693,0.699,3520.6,3520.4,0.13190375]
[1718345925284,0.699,3520.6,3520.1,0.05680613]
[1718345925495,0.699,3520.6,3520.5,0.13183689]
[1718345925678,0.699,3520.6,3520.1,0.05680613]
[1718345925880,0.699,3520.6,3520.5,0.1317946]
[1718345926064,0.699,3520.6,3520.1,0.05680613]
[1718345926270,0.699,3520.6,3520.5,0.1317946]
[1718345926465,0.699,3520.6,3520.1,0.05680613]
[1718345926672,0.699,3520.6,3520.5,0.1317946]
[1718345926865,0.699,3520.6,3520.1,0.05680613]
[1718345927071,0.699,3520.6,3520.5,0.1317946]
[1718345927297,0.699,3520.6,3520.1,0.05680613]
[1718345927510,0.699,3520.6,3520.5,0.1317946]
[1718345927696,0.699,3520.6,3520.1,0.29772674]
[1718345927865,0.699,3520.6,3520.5,0.1317946]
[1718345928068,0.699,3520.6,3520.1,0.29772674]
[1718345928599,0.699,3520.6,3520.2,0.1319952]
[1718345928801,0.699,3520.6,3520.3,0.05680748]
[1718345928980,0.699,3520.6,3520.4,0.13181615]
[1718345933709,0.699,3520.6,3520.2,0.27821219]
[1718345934188,0.699,3520.6,3520.3,0.13188301]
[1718345934593,0.699,3520.6,3520.1,0.05680718]
[1718345934790,0.699,3520.6,3520.2,0.13194988]
[1718345936174,0.699,3520.6,3520.3,0.05680767]
[1718345936369,0.699,3520.6,3520.4,0.13181615]
[1718345937084,0.699,3520.6,3520.1,0.05680731]
[1718345937289,0.699,3520.6,3520.5,0.13174929]
[1718345937489,0.699,3520.6,3520.1,0.29772804]
[1718345937687,0.699,3520.6,3520.5,0.13174929]
[1718345937921,0.699,3520.6,3520.1,0.29772804]
[1718345938090,0.699,3520.6,3520.5,0.13172814]
[1718345938285,2.468,3521.0,3520.1,0.29772804]
[1718345938491,0.699,3520.7,3520.5,0.13172814]
[1718345938705,0.699,3520.7,3520.3,0.05680578]
[1718345938912,2.468,3521.0,3520.6,0.13166129]
[1718345939236,3.23826148,3521.3,3520.3,0.05680578]
[1718345939237,2.3905,3521.2,3520.3,0.05680578]
[1718345939526,0.699,3521.0,3520.5,2.4079]
[1718345939721,2.3905,3521.2,3520.6,0.05680138]
[1718345939880,0.699,3521.0,3520.6,0.18841736]
[1718345940275,2.3905,3521.5,3520.7,1.43344514]
[1718345940608,2.3905,3521.5,3520.8,0.13148227]
[1718345940836,0.699,3521.1,3520.8,0.13148227]
[1718345941809,0.699,3521.0,3520.8,0.13148227]
[1718345942314,2.3905,3521.5,3520.2,4.4010128]
[1718345942473,0.699,3521.0,3520.9,0.13116195]
[1718345942677,0.699,3521.0,3520.3,1.87354642]
[1718345943215,2.3905,3521.5,3520.4,0.18829628]
[1718345943411,2.3905,3521.5,3520.5,1.43344514]
[1718345943579,2.3905,3521.5,3520.6,0.33754678]
[1718345943775,0.699,3521.0,3520.6,0.33754678]
[1718345946521,0.699,3521.0,3520.7,2.46549995]
[1718345946719,0.699,3521.0,3520.7,2.53999565]
[1718345948421,0.699,3520.9,3520.7,2.53999565]
[1718345948622,0.699,3520.9,3520.7,2.95795816]
[1718345949708,0.699,3521.1,3520.7,2.95795816]
[1718345950029,0.699,3521.1,3520.7,0.54925816]
[1718345950229,0.699,3521.1,3520.7,0.13129565]